bitfinex/quotes_BTCUSD_20251224
["timestamp","ask_amount","ask_price","bid_price","bid_amount"]
[1766589065437,1.00343,87014.0,86983.0,0.93029]
[1766589065601,0.48257647,87022.0,86999.0,0.01149438]
[1766589065602,0.01149253,87013.0,86999.0,0.01149438]
[1766589065736,0.01149293,87010.0,86996.0,0.94189]
[1766589065936,0.06896076,87006.0,86996.0,0.0116]
[1766589066158,0.01149398,87002.0,86996.0,0.0116]
[1766589066379,0.05747461,86995.0,86992.0,0.0116]
[1766589066589,0.01149491,86995.0,86992.0,0.0116]
[1766589066750,0.06896949,86995.0,86992.0,0.0116]
[1766589067144,0.01149491,86995.0,86982.0,0.01149663]
[1766589067350,0.06896874,86996.0,86979.0,0.01149702]
[1766589067351,1.00343,86996.0,86979.0,0.0116]
[1766589067717,0.01149623,86985.0,86977.0,0.00010271]
[1766589067884,0.01149597,86987.0,86977.0,0.01170271]
[1766589068056,0.05747919,86988.0,86977.0,0.01170271]
[1766589068255,0.01149597,86987.0,86977.0,0.01170271]
[1766589068679,0.0114961,86986.0,86977.0,0.01170271]
[1766589068898,0.01149623,86985.0,86977.0,0.01170271]
[1766589069305,0.06897671,86986.0,86977.0,0.01170271]
[1766589069466,0.0114961,86986.0,86977.0,0.01170271]
[1766589069670,0.25282721,86991.0,86977.0,0.01170271]
[1766589069671,1.00343,87017.0,86992.0,0.0114953]
[1766589069868,0.01149227,87015.0,87001.0,0.01149412]
[1766589070069,0.0116,87014.0,87007.0,0.01149332]
[1766589070284,0.05749147,87021.0,87009.0,0.01149306]
[1766589070285,0.0116,87021.0,87009.0,0.01149306]
[1766589070495,0.0116,87021.0,87012.0,0.06895598]
[1766589070708,0.0116,87021.0,87011.0,0.01149279]
[1766589071094,0.0116,87021.0,87010.0,0.01149293]
[1766589071247,0.00035522,87019.0,87016.0,0.01149213]
[1766589071608,0.23951752,87020.0,87015.0,0.01149227]
[1766589071843,2.9e-07,87030.0,87021.0,0.01149147]
[1766589072042,2.9e-07,87030.0,87019.0,0.01149174]
[1766589072043,0.0001068,87030.0,87022.0,0.00114013]
[1766589072252,0.01148976,87034.0,87022.0,0.02309134]
[1766589072458,0.01148989,87033.0,87022.0,0.0116]
[1766589073091,0.01149002,87032.0,87022.0,0.0116]
[1766589073306,0.01149002,87032.0,87017.0,0.06895161]
[1766589073307,0.01149029,87030.0,87012.0,0.01149266]
[1766589073513,0.01149068,87027.0,87013.0,0.0116]
[1766589073719,0.06894429,87027.0,87014.0,0.0114924]
[1766589073930,0.06894429,87027.0,87013.0,0.02309253]
[1766589074370,0.01149068,87027.0,87014.0,0.0114924]
[1766589074581,0.01149081,87026.0,87015.0,0.01149227]
[1766589074787,0.01149081,87026.0,87014.0,0.0114924]
[1766589074993,0.01149108,87024.0,87013.0,0.0116]
[1766589075414,0.01149108,87024.0,87014.0,0.0116]
[1766589076839,0.03111775,87071.0,87012.0,0.00010651]
[1766589076840,0.01149161,87020.0,87012.0,0.00010651]
[1766589077012,0.02291738,87031.0,87004.0,0.0116]
[1766589077013,0.01149227,87015.0,87004.0,0.0116]
[1766589077313,0.66255564,87030.0,86996.0,0.94178478]
[1766589077314,0.01149319,87008.0,86996.0,0.01149478]
[1766589077489,0.01149213,87016.0,87002.0,0.01149398]
[1766589077673,0.0114924,87014.0,87003.0,0.01149385]
[1766589077867,0.0116,87017.0,87006.0,0.01149346]
[1766589078254,0.0116,87017.0,87007.0,0.01149332]
[1766589078671,0.06895072,87019.0,87006.0,0.01149346]
[1766589078874,0.0116,87018.0,87006.0,0.01149346]
[1766589079099,0.0116,87019.0,87007.0,0.06895994]
[1766589079306,0.01149174,87019.0,87006.0,0.94178346]
[1766589079510,0.01149187,87018.0,87006.0,0.94178346]
[1766589079738,0.01149187,87018.0,87006.0,0.93029]
[1766589079940,0.011492,87017.0,87006.0,0.93029]
[1766589080224,0.01149187,87018.0,87006.0,0.94178346]
[1766589080400,0.01149174,87019.0,87007.0,0.01149332]
[1766589080819,0.05745798,87021.0,87009.0,0.93029]
[1766589081019,0.22982669,87023.0,87010.0,0.0116]
[1766589081225,0.01149161,87020.0,87010.0,0.0116]
[1766589081401,0.01149174,87019.0,87011.0,0.0116]
[1766589081604,0.01149147,87021.0,87011.0,0.0116]
[1766589081814,0.06894815,87022.0,87011.0,0.0116]
[1766589082014,0.01149121,87023.0,87011.0,0.02309279]
[1766589082348,0.01149134,87022.0,87011.0,0.0116]
[1766589082679,0.01171,87024.0,87012.0,0.01149266]
[1766589082680,0.00011,87024.0,87012.0,0.01149266]
[1766589082877,0.01149015,87031.0,87017.0,0.06895072]
[1766589083099,0.01149108,87024.0,87012.0,0.01149266]
[1766589083302,0.05745475,87025.0,87012.0,0.06895593]
[1766589083551,0.0689457,87025.0,87012.0,0.06895593]
[1766589083713,0.0689457,87025.0,87012.0,0.01149266]
[1766589084150,0.01149095,87025.0,87011.0,0.0116]
[1766589084357,0.01149121,87023.0,87011.0,0.0116]
[1766589084553,0.01149134,87022.0,87011.0,0.0116]
[1766589084821,0.01149134,87022.0,87011.0,0.02309279]
[1766589085099,0.01149134,87022.0,87011.0,0.0116]
[1766589085277,0.01149134,87022.0,87012.0,0.0116]
[1766589085483,0.06894777,87023.0,87012.0,0.0116]
[1766589085658,0.06894777,87023.0,87012.0,0.02309266]
[1766589085861,0.01149108,87024.0,87012.0,0.02309266]
[1766589087166,0.05745533,87025.0,87013.0,0.01149253]
[1766589087378,0.06894628,87025.0,87013.0,0.01149253]
[1766589087582,0.01149081,87026.0,87014.0,0.0114924]
[1766589087907,0.01149108,87024.0,87012.0,0.0805559]
[1766589088602,0.06894807,87022.0,87012.0,0.0116]
[1766589088776,0.01149134,87022.0,87012.0,0.0116]
[1766589089185,0.01149147,87021.0,87012.0,0.0116]
[1766589089390,0.06894837,87022.0,87012.0,0.0116]
[1766589089992,0.01149147,87021.0,87012.0,0.0116]
[1766589090193,0.01149134,87022.0,87012.0,0.0116]
[1766589091130,0.06894814,87022.0,87012.0,0.0116]
[1766589091579,0.01149134,87022.0,87012.0,0.0116]
[1766589091752,0.01149147,87021.0,87012.0,0.0116]
[1766589091956,0.01149121,87023.0,87012.0,0.0116]
[1766589092160,0.01149161,87020.0,87012.0,0.0116]
[1766589092373,0.05746465,87011.0,87009.0,0.1485]
[1766589092565,0.01149346,87006.0,86999.0,0.0116]
[1766589092704,0.01149346,87006.0,86999.0,0.00011]
[1766589092905,0.01149293,87010.0,86999.0,0.00011]
[1766589093204,0.06895852,87009.0,86999.0,0.00011]
[1766589093413,0.01149319,87008.0,86999.0,0.00011]
[1766589093669,0.06895898,87009.0,86999.0,0.00011]
[1766589093878,0.06895758,87010.0,86999.0,0.00011]
[1766589094017,0.01149359,87005.0,86999.0,0.00011]
[1766589094228,0.05746928,87003.0,86999.0,0.00011]
[1766589094593,0.01149478,86996.0,86989.0,0.1485]
[1766589094745,0.01149478,86996.0,86984.0,0.01149636]
[1766589094746,0.01149412,87001.0,86988.0,0.01149583]
[1766589094948,0.01149412,87001.0,86989.0,0.0116]
[1766589095147,0.01149398,87002.0,86990.0,0.01149557]
[1766589095346,1.04366385,87003.0,86990.0,0.01185079]
[1766589095567,1.04366385,87003.0,86991.0,0.01149544]
[1766589095768,1.10113322,87003.0,86991.0,0.01149544]
[1766589096340,0.01149398,87002.0,86990.0,0.06932813]
[1766589096537,1.10113363,87003.0,86991.0,0.01149544]
[1766589096777,0.01149398,87002.0,86990.0,0.06932813]
[1766589096960,0.01149398,87002.0,86990.0,0.00035522]
[1766589097495,0.01149398,87002.0,86990.0,0.01185079]
[1766589097654,0.01149412,87001.0,86990.0,0.01185079]
[1766589098016,0.06896598,87001.0,86990.0,0.00035522]
[1766589098207,0.01149438,86999.0,86990.0,0.00035522]
[1766589098813,0.06896555,87000.0,86990.0,0.00035522]
[1766589099247,1.27509746,87012.0,86995.0,0.01149491]
[1766589099513,0.02309134,87022.0,87006.0,0.01149346]
[1766589099712,0.01160174,87019.0,87007.0,0.02309332]
[1766589099836,0.00011,87019.0,87009.0,0.01149306]
[1766589100035,0.00011,87019.0,87013.0,0.01149253]
[1766589100265,0.01149134,87022.0,87010.0,0.01149293]
[1766589100466,0.01149134,87022.0,87012.0,0.0116]
[1766589100645,0.01149174,87019.0,87012.0,0.0116]
[1766589100866,0.06895058,87019.0,87012.0,0.0116]
[1766589101048,0.06894915,87021.0,87012.0,0.0116]
[1766589101254,0.06894821,87022.0,87012.0,0.0116]
[1766589101456,0.01149134,87022.0,87012.0,0.0116]
[1766589101652,0.01149147,87021.0,87012.0,0.0116]
[1766589101880,0.01149174,87019.0,87012.0,0.0116]
[1766589102261,0.01149187,87018.0,87012.0,0.0116]
[1766589102659,0.06894986,87020.0,87012.0,0.0116]
[1766589102857,0.26616533,87112.0,87012.0,0.0116]
[1766589102858,0.01149095,87025.0,87013.0,0.01149253]
[1766589103296,0.01148989,87033.0,87019.0,0.01149174]
[1766589103467,0.01148976,87034.0,87020.0,0.02309161]
[1766589103668,0.01148989,87033.0,87021.0,0.01149147]
[1766589103971,0.01148989,87033.0,87020.0,0.08054843]
[1766589103972,0.01149002,87032.0,87020.0,0.02309161]
[1766589104201,0.01148989,87033.0,87022.0,0.01149134]
[1766589104438,0.0115964,87033.0,87021.0,0.01149147]
[1766589104732,0.00010651,87033.0,87024.0,0.01149108]
[1766589105170,0.00010651,87033.0,87024.0,0.06894586]
[1766589105382,0.01149029,87030.0,87025.0,0.0116]
[1766589105635,0.05745013,87032.0,87025.0,0.0116]
[1766589105830,0.06894149,87031.0,87025.0,0.0116]
[1766589106029,0.06894015,87032.0,87025.0,0.0116]
[1766589106229,0.01149015,87031.0,87025.0,0.0116]
[1766589106431,0.01149055,87028.0,87019.0,0.97263]
[1766589106789,0.01149055,87028.0,87020.0,0.0116]
[1766589107985,0.01149068,87027.0,87020.0,0.0116]
[1766589108910,0.01149002,87032.0,87021.0,0.0116]
[1766589109198,0.01149002,87032.0,87021.0,0.02309147]
[1766589109404,0.05755652,87033.0,87021.0,0.02309147]
[1766589109604,0.01149029,87030.0,87021.0,0.0116]
[1766589109750,0.01149015,87031.0,87021.0,0.0116]
[1766589109958,0.06894142,87032.0,87021.0,0.0116]
[1766589110358,0.01149029,87030.0,87021.0,0.0116]
[1766589110627,0.06894142,87032.0,87021.0,0.02309147]
[1766589110798,0.01149002,87032.0,87021.0,0.02309147]
[1766589111024,0.00010651,87033.0,87024.0,0.06894647]
[1766589111201,0.0116,87036.0,87025.0,0.01149095]
[1766589111404,0.0116,87041.0,87029.0,0.97263]
[1766589111724,0.0116,87041.0,87029.0,0.97273651]
[1766589111725,0.01148897,87040.0,87029.0,0.97273651]
[1766589111934,0.0114891,87039.0,87029.0,0.97273651]
[1766589112140,0.06893389,87040.0,87029.0,0.97273651]
[1766589112354,0.01148936,87037.0,87029.0,0.00010651]
[1766589112542,0.06893825,87036.0,87029.0,0.00010651]
[1766589112897,0.01148963,87035.0,87029.0,0.00010651]
[1766589113147,0.01148949,87036.0,87029.0,0.00010651]
[1766589113368,0.01148976,87034.0,87029.0,0.00010651]
[1766589113591,0.01149134,87022.0,87014.0,0.046]
[1766589113816,0.05746532,87009.0,87001.0,0.19446]
[1766589114059,0.05757199,87009.0,87004.0,0.00011]
[1766589114290,0.00010653,87009.0,87004.0,0.00011]
[1766589115451,0.00010653,87009.0,87004.0,0.01160372]
[1766589115697,0.00010653,87009.0,87004.0,0.00011]
[1766589115929,0.01149227,87015.0,87004.0,0.00011]
[1766589116323,1.03375,87027.0,87004.0,0.00011]
[1766589116527,0.01149279,87011.0,87004.0,0.00011]
[1766589116705,0.01149293,87010.0,87004.0,0.00011]
[1766589116914,0.01149279,87011.0,87004.0,0.00011]
[1766589117104,0.01149293,87010.0,87004.0,0.00011]
[1766589117304,0.06895532,87013.0,87004.0,0.00011]
[1766589117713,1.03375,87045.0,87015.0,0.01149227]
[1766589117932,0.01149029,87030.0,87014.0,0.0116]
[1766589118136,0.01149081,87026.0,87014.0,0.0230924]
[1766589118341,0.0116,87029.0,87020.0,0.01149161]
[1766589118587,0.06893392,87040.0,87027.0,0.01149068]
[1766589118787,0.0116,87036.0,87028.0,0.01149055]
[1766589119267,0.06893779,87035.0,87023.0,0.01149121]
[1766589119481,0.01148963,87035.0,87023.0,0.06894669]
[1766589119644,0.0116,87036.0,87026.0,0.01149081]
[1766589119849,0.02308949,87036.0,87025.0,0.01149095]
[1766589120260,0.06893796,87035.0,87023.0,0.01149121]
[1766589120455,0.01148963,87035.0,87024.0,0.01149108]
[1766589121043,0.000549,87024.0,87021.0,0.0116]
[1766589121246,0.06949561,87024.0,87021.0,0.00010773]
[1766589121452,0.01149147,87021.0,87009.0,0.01149306]
[1766589121743,0.01149147,87021.0,87004.0,0.01160372]
[1766589121744,0.0114924,87014.0,87004.0,0.00011]
[1766589121947,0.01149332,87007.0,87004.0,0.00011]
[1766589122195,0.0114924,87014.0,87004.0,0.00011]
[1766589122416,0.01149319,87008.0,87004.0,0.00011]
[1766589122735,0.01149293,87010.0,87004.0,0.00011]
[1766589122891,0.05746404,87011.0,87004.0,0.00011]
[1766589123073,0.01149213,87016.0,87004.0,0.00011]
[1766589123074,1.09998,87017.0,87004.0,0.01160372]
[1766589123275,0.08054807,87022.0,87009.0,0.05746531]
[1766589123503,0.00010655,87022.0,87016.0,0.05746022]
[1766589123659,0.01149029,87030.0,87019.0,0.01149174]
[1766589123857,0.05745059,87032.0,87015.0,0.05746113]
[1766589123858,0.01149042,87029.0,87015.0,0.05746113]
[1766589124099,0.06894337,87028.0,87016.0,0.01149213]
[1766589124316,0.05745409,87026.0,87017.0,0.0116]
[1766589124518,0.01149095,87025.0,87017.0,0.0116]
[1766589124741,0.0689443,87027.0,87017.0,0.0116]
[1766589125125,0.01149068,87027.0,87017.0,0.0116]
[1766589125306,0.0689442,87027.0,87017.0,0.0116]
[1766589125983,0.01149108,87024.0,87017.0,0.0116]
[1766589126155,0.0689466,87024.0,87017.0,0.0116]
[1766589126365,0.01149121,87023.0,87017.0,0.0116]
[1766589126543,0.01149108,87024.0,87017.0,0.0116]
[1766589126745,0.01149279,87011.0,86991.0,0.20597706]
[1766589126941,0.01149359,87005.0,86989.0,0.0114957]
[1766589127143,0.01149372,87004.0,86992.0,0.0114953]
[1766589127483,0.01149372,87004.0,86992.0,0.06897181]
[1766589127484,0.06896237,87004.0,86992.0,0.06897181]
[1766589127682,0.06896237,87004.0,86993.0,0.01149517]
[1766589127829,0.01149332,87007.0,86993.0,0.01149517]
[1766589127830,0.06896124,87007.0,86994.0,0.05747462]
[1766589128006,0.01149359,87005.0,86994.0,0.06896966]
[1766589128214,0.01149266,87012.0,86997.0,0.01149464]
[1766589128424,0.05746354,87012.0,87000.0,0.01149425]
[1766589128708,0.01149359,87005.0,86994.0,0.01171]
[1766589128842,0.01149359,87005.0,86994.0,0.02320504]
[1766589129422,0.06896137,87006.0,86994.0,0.02320504]
[1766589129652,0.000439,86994.0,86989.0,0.00035522]
[1766589129849,0.01149451,86998.0,86989.0,0.00035522]
[1766589130076,0.01149293,87010.0,86997.0,0.01149464]
[1766589130250,0.45963413,87026.0,86995.0,0.02309491]
[1766589130251,0.01149319,87008.0,86995.0,0.02309491]
[1766589130452,0.0116,87009.0,86998.0,0.01149451]
[1766589130657,0.02309306,87009.0,86998.0,0.01149451]
[1766589131466,0.0116,87009.0,86999.0,0.01149438]
[1766589131689,0.0116,87009.0,86999.0,0.06896616]
[1766589131879,0.0116,87009.0,87000.0,0.01149425]
[1766589132174,0.0116,87009.0,86999.0,0.06896616]
[1766589132334,0.0116,87010.0,87003.0,0.01149385]
[1766589132541,0.0116,87010.0,87006.0,0.01149346]
[1766589132744,0.0116,87010.0,87005.0,0.01149359]
[1766589132940,0.0116,87010.0,87005.0,0.06896118]
[1766589133145,0.01171,87014.0,87006.0,0.01149346]
[1766589133342,0.01171,87014.0,87001.0,0.06896408]
[1766589133546,0.01171,87014.0,87004.0,0.01149372]
[1766589133957,0.01171,87014.0,87004.0,0.06896232]
[1766589134206,0.01171,87014.0,87004.0,0.01149372]
[1766589134406,0.01171,87014.0,87003.0,0.06896287]
[1766589134407,0.0232024,87014.0,87003.0,0.06896287]
[1766589134710,0.01149253,87013.0,87002.0,0.01149398]
[1766589135054,0.08066455,87014.0,86964.0,0.01149412]
[1766589135055,0.01149346,87006.0,86995.0,0.02309491]
[1766589135256,0.01149398,87002.0,86989.0,0.00035522]
[1766589135456,0.01149385,87003.0,86991.0,0.02309544]
[1766589135828,0.01149412,87001.0,86991.0,0.0116]
[1766589135998,0.01149385,87003.0,86991.0,0.08057234]
[1766589136178,0.01149412,87001.0,86991.0,0.0116]
[1766589136558,0.01149716,86978.0,86975.0,0.00011]
[1766589136768,0.05748651,86977.0,86966.0,0.0116]
[1766589136964,1.08838,86976.0,86966.0,0.01170653]
[1766589137391,0.01149689,86980.0,86962.0,0.00011]
[1766589137392,1.08838,86971.0,86962.0,0.00011]
[1766589137672,1.08838,86971.0,86962.0,2.71e-06]
[1766589137872,1.09987861,86967.0,86962.0,2.71e-06]
[1766589138058,0.06899326,86965.0,86962.0,2.71e-06]
[1766589138253,1.08838,86967.0,86962.0,2.71e-06]
[1766589138727,0.05749571,86963.0,86962.0,2.71e-06]
[1766589138943,1.08838,86963.0,86962.0,2.71e-06]
[1766589139167,1.08838,86963.0,86952.0,2.71e-06]
[1766589139168,0.0115002,86955.0,86952.0,2.71e-06]
[1766589139315,1.08838,86958.0,86952.0,2.71e-06]
[1766589139514,0.01149967,86959.0,86952.0,2.71e-06]
[1766589139515,1.08838,86955.0,86952.0,2.71e-06]
[1766589141126,1.08838,86955.0,86937.0,0.01150258]
[1766589141127,0.01150073,86951.0,86937.0,0.01150258]
[1766589141286,1.08838,86950.0,86937.0,0.05751264]
[1766589141493,1.08838,86950.0,86939.0,0.01150231]
[1766589141652,1.08838,86950.0,86940.0,0.01150218]
[1766589141861,0.45985933,86984.0,86933.0,0.24166036]
[1766589141862,0.0114998,86958.0,86950.0,0.00022]
[1766589142060,1.09998,86957.0,86950.0,0.00010662]
[1766589142500,1.14588133,86955.0,86950.0,0.00010662]
[1766589142838,1.08838,86955.0,86943.0,0.01150178]
[1766589143071,1.0884865,86955.0,86945.0,0.01150152]
[1766589143300,1.0884865,86955.0,86948.0,0.05750537]
[1766589143534,0.0116,86957.0,86955.0,0.0001135]
[1766589143746,1.09998,86957.0,86946.0,0.01150139]
[1766589143949,1.09998,86957.0,86948.0,0.01150112]
[1766589144131,1.09998,86957.0,86949.0,0.01150099]
[1766589145843,1.09998,86957.0,86950.0,0.01150086]
[1766589146288,1.09998,86957.0,86949.0,0.06900587]
[1766589146942,1.09998,86957.0,86950.0,0.01150086]
[1766589147202,1.09998,86957.0,86950.0,0.06900517]
[1766589147437,1.09998,86957.0,86948.0,0.01150112]
[1766589147706,0.06898189,86980.0,86967.0,0.01149861]
[1766589147918,0.06898189,86980.0,86959.0,0.01149967]
[1766589147919,1.08838,86994.0,86977.0,0.01149729]
[1766589148174,0.02309544,86991.0,86978.0,0.01149716]
[1766589148373,0.01149583,86988.0,86976.0,0.06898424]
[1766589148581,0.0116,86991.0,86980.0,0.01149689]
[1766589148766,0.0116,86991.0,86978.0,0.01149716]
[1766589148970,0.0116,86991.0,86978.0,0.06898295]
[1766589149180,0.02345123,86991.0,86978.0,0.06898295]
[1766589149375,0.02345123,86991.0,86979.0,0.01149702]
[1766589149549,0.02345123,86991.0,86978.0,0.06898295]
[1766589149766,0.02345123,86991.0,86979.0,0.01149702]
[1766589149973,0.02345123,86991.0,86978.0,0.01149716]
[1766589150194,0.01195579,86991.0,86978.0,0.01149716]
[1766589150364,0.01195579,86991.0,86979.0,0.01149702]
[1766589150566,0.01195579,86991.0,86980.0,0.01149689]
[1766589150769,0.01195579,86991.0,86977.0,0.01149729]
[1766589151004,0.02345123,86991.0,86978.0,0.06898296]
[1766589151201,0.0114957,86989.0,86977.0,0.01149729]
[1766589151889,0.01195579,86991.0,86978.0,0.01149716]
[1766589152086,0.01195579,86991.0,86980.0,0.01149689]
[1766589152293,0.01195579,86991.0,86981.0,0.01149676]
[1766589152508,0.01195579,86991.0,86981.0,0.06898049]
[1766589152730,0.01140679,86991.0,86988.0,0.06897476]
[1766589152943,0.00035579,86991.0,86980.0,0.0116]
[1766589153166,0.00035579,86991.0,86981.0,0.0805803]
[1766589153370,0.00035579,86991.0,86981.0,0.0116]
[1766589153777,0.01185123,86991.0,86981.0,0.0116]
[1766589154410,0.0116053,86992.0,86981.0,0.0116]
[1766589154411,0.00011,86992.0,86988.0,0.01149583]
[1766589154614,1.02922,87007.0,86999.0,0.01149438]
[1766589154839,1.02922,87007.0,87001.0,0.01149412]
[1766589155045,0.0116,87008.0,87001.0,0.01149412]
[1766589155046,0.0116,87008.0,87002.0,0.01149398]
[1766589155438,0.0116,87008.0,86999.0,0.06896501]
[1766589155670,0.0116,87008.0,86998.0,0.06896688]
[1766589155801,0.0116,87008.0,86997.0,0.01149464]
[1766589155999,0.0116,87008.0,86998.0,0.01149451]
[1766589158043,0.0116,87008.0,86999.0,0.01149438]
[1766589158271,0.08055602,87012.0,87000.0,0.01149425]
[1766589158441,0.02309266,87012.0,87000.0,0.01149425]
[1766589158656,0.01149279,87011.0,86999.0,0.01149438]
[1766589158879,0.01149306,87009.0,86997.0,0.01149464]
[1766589159054,0.01149319,87008.0,86996.0,0.0116]
[1766589159441,0.99941,87009.0,87001.0,0.01149412]
[1766589159558,0.99941,87009.0,87000.0,0.06896485]
[1766589159759,0.99941,87009.0,86999.0,0.01149438]
[1766589159978,1.01090306,87009.0,86996.0,0.02309478]
[1766589160175,0.99941,87009.0,86999.0,0.06896629]
[1766589160381,0.99941,87009.0,86998.0,0.01149451]
[1766589160889,0.99941,87009.0,86999.0,0.01149438]
[1766589161096,1.01090306,87009.0,86997.0,0.01149464]
[1766589162161,0.99941,87009.0,86998.0,0.01149451]
[1766589162871,0.99941,87009.0,86997.0,0.01149464]
[1766589163024,0.01149161,87020.0,87004.0,0.01149372]
[1766589163205,0.99941,87027.0,87017.0,0.011492]
[1766589163407,1.01111661,87027.0,87018.0,0.01149187]
[1766589163774,0.01149108,87024.0,87013.0,0.0116]
[1766589163928,0.06894658,87024.0,87013.0,0.0116]
[1766589164285,0.01149134,87022.0,87013.0,0.0116]
[1766589164434,0.05745815,87020.0,87013.0,0.0116]
[1766589164642,0.06894976,87020.0,87013.0,0.0116]
[1766589165050,0.05745497,87025.0,87013.0,0.0116]
[1766589165251,0.06894834,87022.0,87013.0,0.0116]
[1766589166446,0.05745741,87021.0,87013.0,0.0116]
[1766589166824,0.01149147,87021.0,87013.0,0.0116]
[1766589166961,0.06894729,87023.0,87013.0,0.0116]
[1766589167171,0.01149134,87022.0,87013.0,0.0116]
[1766589167417,0.01149161,87020.0,87013.0,0.0116]
[1766589167600,0.99941,87012.0,86999.0,0.01149438]
[1766589167803,0.012699,87013.0,87008.0,0.01149319]
[1766589167977,0.01149161,87020.0,87009.0,0.0116]
[1766589168178,0.06894971,87020.0,87010.0,0.0116]
[1766589168497,0.99941,87022.0,87010.0,0.0116]
[1766589168699,1.06835839,87022.0,87010.0,0.0116]
[1766589168901,0.01149174,87019.0,87010.0,0.0116]
[1766589169507,0.01149187,87018.0,87010.0,0.0116]
[1766589169716,0.99941,87022.0,87013.0,0.01149253]
[1766589169931,0.0116,87036.0,87023.0,0.05745591]
[1766589170114,0.02291738,87034.0,87023.0,0.06894707]
[1766589170458,0.02291738,87034.0,87022.0,0.01149134]
[1766589170749,0.06904762,87036.0,87021.0,0.08054755]
[1766589170750,0.0116,87036.0,87024.0,0.01149108]
[1766589170870,0.0116,87036.0,87025.0,0.01149095]
[1766589171073,0.99941,87045.0,87036.0,0.000549]
[1766589171321,0.0116,87044.0,87036.0,0.000549]
[1766589171479,0.02308844,87044.0,87033.0,0.01148989]
[1766589171692,0.01148897,87040.0,87028.0,0.0116]
[1766589172090,0.0114891,87039.0,87028.0,0.0116]
[1766589172295,0.01148949,87036.0,87028.0,0.0116]
[1766589172630,0.01148923,87038.0,87028.0,0.0116]
[1766589172929,0.01148976,87034.0,87028.0,0.0116]
[1766589173492,0.01148989,87033.0,87028.0,0.0116]
[1766589173708,0.01149068,87027.0,87010.0,0.01149293]
[1766589173916,1.06835504,87026.0,87013.0,0.0116]
[1766589174120,0.99941,87026.0,87014.0,0.05746138]
[1766589175000,0.99941,87026.0,87016.0,0.01149213]
[1766589175182,1.01090081,87026.0,87014.0,0.05746138]
[1766589175387,0.99941,87026.0,87015.0,0.01149227]
[1766589175567,0.99941,87026.0,87016.0,0.01149213]
[1766589175967,0.99941,87026.0,87015.0,0.06895361]
[1766589176372,0.99941,87026.0,87013.0,0.0116]
[1766589176577,1.05686459,87026.0,87013.0,0.0116]
[1766589176774,0.05745534,87025.0,87014.0,0.0116]
[1766589177175,0.01149108,87024.0,87014.0,0.0116]
[1766589177593,0.06894651,87024.0,87014.0,0.0116]
[1766589177790,0.01149121,87023.0,87014.0,0.0116]
[1766589177975,0.06894861,87022.0,87014.0,0.0116]
[1766589178182,0.01149147,87021.0,87014.0,0.0116]
[1766589178415,0.01149095,87025.0,87014.0,0.0116]
[1766589178634,0.06894632,87025.0,87014.0,0.0116]
[1766589178863,0.01149121,87023.0,87014.0,0.0116]
[1766589179084,0.01149134,87022.0,87014.0,0.0116]
[1766589179484,0.06894741,87023.0,87014.0,0.0116]
[1766589180204,0.01149121,87023.0,87014.0,0.0116]
[1766589180407,0.01148936,87037.0,87015.0,0.90279]
[1766589180680,0.01148989,87033.0,87023.0,0.000549]
[1766589180830,0.9816,87025.0,87010.0,0.01149293]
[1766589181030,0.9816,87025.0,87012.0,0.01159927]
[1766589181216,0.01149081,87026.0,87015.0,0.01149227]
[1766589181414,0.05745614,87023.0,87013.0,0.0116]
[1766589181628,0.01149108,87024.0,87013.0,0.0116]
[1766589182278,0.01149121,87023.0,87013.0,0.0116]
[1766589182495,0.99309346,87006.0,86982.0,0.90279]
[1766589182705,0.9816,87006.0,86995.0,0.01149491]
[1766589182911,0.0116,87009.0,87001.0,0.01149412]
[1766589183064,0.0116,87009.0,87002.0,0.01149398]
[1766589183265,0.0116,87009.0,87000.0,0.06896496]
[1766589183266,0.0116,87009.0,86996.0,0.00011]
[1766589183471,0.0116,87009.0,87001.0,0.01149412]
[1766589183673,0.0116,87009.0,87004.0,0.01149372]
[1766589183875,0.0116,87009.0,87002.0,0.01149398]
[1766589183876,0.0116,87009.0,87003.0,0.05746927]
[1766589184079,0.0116,87009.0,87002.0,0.06896381]
[1766589184648,0.0116,87009.0,87001.0,0.06896349]
[1766589184649,0.00238477,87009.0,87001.0,0.01149412]
[1766589184843,0.00238477,87009.0,87003.0,0.01149385]
[1766589185048,0.9816,87009.0,87000.0,0.0116]
[1766589185223,0.05746668,87007.0,87000.0,0.0116]
[1766589185426,0.9816,87009.0,87000.0,0.0116]
[1766589185591,0.01149319,87008.0,87000.0,0.0116]
[1766589185788,0.01149332,87007.0,87000.0,0.0116]
[1766589185986,0.06895943,87008.0,87000.0,0.0116]
[1766589186245,0.06895805,87010.0,87000.0,0.0116]
[1766589186546,0.01149306,87009.0,87000.0,0.0116]
[1766589186777,0.06895805,87010.0,87000.0,0.0116]
[1766589187313,0.01149332,87007.0,87000.0,0.0116]
[1766589187516,0.99309319,87008.0,86999.0,0.0116]
[1766589187729,0.9816,87008.0,86999.0,0.0116]
[1766589188533,0.9816,87008.0,86995.0,0.01149491]
[1766589188534,0.01149544,86991.0,86979.0,0.01149702]
[1766589188736,0.01149544,86991.0,86978.0,0.90279]
[1766589188737,0.01149557,86990.0,86978.0,0.08058251]
[1766589189055,0.01149517,86993.0,86981.0,0.06898041]
[1766589189219,0.06897071,86995.0,86983.0,0.01149649]
[1766589189719,0.01149491,86995.0,86983.0,0.06897896]
[1766589189914,0.02309478,86996.0,86984.0,0.01149636]
[1766589190188,0.01149504,86994.0,86982.0,0.06933547]
[1766589190389,0.01149517,86993.0,86982.0,0.00035579]
[1766589190945,0.01149544,86991.0,86982.0,0.00035579]
[1766589191148,0.01149504,86994.0,86982.0,7.9e-07]
[1766589191350,0.01149557,86990.0,86982.0,7.9e-07]
[1766589191654,0.99309544,86991.0,86982.0,7.9e-07]
[1766589191852,0.01149583,86988.0,86982.0,7.9e-07]
[1766589192076,0.9816,86990.0,86982.0,7.9e-07]
[1766589192256,0.0114957,86989.0,86982.0,7.9e-07]
[1766589192454,0.99309557,86990.0,86982.0,7.9e-07]
[1766589193797,0.06907783,86991.0,86982.0,7.9e-07]
[1766589193973,0.0116,86991.0,86982.0,7.9e-07]
[1766589194492,0.01149557,86990.0,86982.0,7.9e-07]
[1766589194897,0.02309544,86991.0,86982.0,7.9e-07]
[1766589195142,0.01149557,86990.0,86982.0,7.9e-07]
[1766589195308,0.08057326,86991.0,86978.0,0.02309716]
[1766589195309,0.01149623,86985.0,86978.0,0.0116]
[1766589195506,0.0118513,86985.0,86978.0,0.0116]
[1766589195706,0.00035507,86985.0,86978.0,0.0116]
[1766589196006,0.00035507,86985.0,86978.0,0.02309716]
[1766589196208,0.00035507,86985.0,86979.0,0.01149702]
[1766589196993,0.00035507,86985.0,86978.0,0.02309716]